bitfinex-derivatives/quotes_BTCF0:USTF0_20250907
["timestamp","ask_amount","ask_price","bid_price","bid_amount"]
[1757242761566,0.81425484,111230.0,111220.0,0.14970274]
[1757242762867,0.81425484,111230.0,111220.0,0.03636]
[1757242768770,0.81425484,111230.0,111220.0,0.14970263]
[1757242771161,0.81389484,111230.0,111220.0,0.14970263]
[1757242771365,0.81389484,111230.0,111220.0,0.46970263]
[1757242771566,0.0002,111240.0,111220.0,0.86959723]
[1757242771764,0.81392,111240.0,111230.0,0.03687]
[1757242772063,0.81372,111240.0,111230.0,0.38687]
[1757242773671,0.81472,111240.0,111230.0,0.38687]
[1757242774272,0.81372,111240.0,111230.0,0.38687]
[1757242774476,0.81572,111240.0,111230.0,0.5000788]
[1757242775475,0.81572,111240.0,111230.0,0.38687]
[1757242776777,0.81572,111240.0,111230.0,0.50004708]
[1757242780773,0.81572,111240.0,111230.0,0.38687]
[1757242782078,0.002,111240.0,111230.0,0.38687]
[1757242785077,0.00019,111290.0,111240.0,0.01377]
[1757242785280,0.38019,111290.0,111280.0,0.03687]
[1757242785470,0.00019,111290.0,111280.0,0.03687]
[1757242785676,0.09284,111320.0,111300.0,0.03687]
[1757242785970,0.44284,111320.0,111300.0,0.03687]
[1757242786375,0.7136138,111320.0,111300.0,0.00013484]
[1757242786674,0.7137138,111320.0,111300.0,0.00013484]
[1757242787279,0.7167138,111320.0,111300.0,0.00013484]
[1757242787883,0.7197138,111320.0,111300.0,0.00013484]
[1757242789383,0.729164,111320.0,111300.0,0.00013484]
[1757242790385,0.79947691,111320.0,111300.0,0.00013484]
[1757242790682,0.77870311,111320.0,111300.0,0.00013484]
[1757242791685,0.73,111310.0,111300.0,0.00013484]
[1757242791883,1.06,111310.0,111300.0,0.00013484]
[1757242793088,1.061,111310.0,111300.0,0.00013484]
[1757242793981,1.063,111310.0,111300.0,0.00013484]
[1757242801395,1.87624,111310.0,111300.0,0.28615484]
[1757242802282,1.063,111310.0,111300.0,0.28615484]
[1757242802487,1.87644,111310.0,111300.0,0.28615484]
[1757242804095,1.69644,111310.0,111300.0,0.28615484]
[1757242805196,0.96644,111310.0,111300.0,0.28615484]
[1757242806595,0.153,111310.0,111300.0,0.28615484]
[1757242806797,0.9664,111310.0,111300.0,0.28615484]
[1757242807391,0.9654,111310.0,111300.0,0.28615484]
[1757242807591,0.9634,111310.0,111300.0,0.28715484]
[1757242807792,0.9634,111310.0,111300.0,0.28815484]
[1757242808700,0.15,111310.0,111300.0,0.28815484]
[1757242809095,0.96324,111310.0,111300.0,0.28815484]
[1757242811408,0.15,111310.0,111300.0,0.28815484]
[1757242811603,0.96316,111310.0,111300.0,0.28815484]
[1757242813397,1.15316,111310.0,111300.0,0.28815484]
[1757242814711,0.93316,111310.0,111300.0,0.28815484]
[1757242816513,0.81316,111310.0,111300.0,0.28815484]
[1757242816912,0.81316,111310.0,111300.0,0.36868368]
[1757242817415,1.13316,111310.0,111300.0,0.36868368]
[1757242821419,1.13308,111310.0,111300.0,0.36868368]
[1757242823213,1.13308,111310.0,111300.0,0.36668368]
[1757242823413,1.13308,111310.0,111300.0,0.36968368]
[1757242824222,1.13308,111310.0,111300.0,0.36868368]
[1757242824520,1.13308,111310.0,111300.0,0.37168368]
[1757242824920,1.13308,111310.0,111300.0,0.36968368]
[1757242825121,1.13308,111310.0,111300.0,0.37268368]
[1757242828325,1.13308,111310.0,111300.0,0.37280132]
[1757242830826,0.32,111310.0,111300.0,0.12280132]
[1757242831030,0.32,111310.0,111300.0,0.04215484]
[1757242831324,0.32,111310.0,111300.0,0.15508719]
[1757242835126,0.01,111310.0,111300.0,0.15508719]
[1757242836020,0.48628311,111320.0,111300.0,0.15508719]
[1757242836224,0.83628311,111320.0,111310.0,0.03625]
[1757242836429,0.83608311,111320.0,111310.0,0.03625]
[1757242837133,0.42976311,111320.0,111310.0,0.05410761]
[1757242837330,0.35,111320.0,111310.0,0.05410761]
[1757242837534,0.35,111320.0,111310.0,0.1347842]
[1757242837920,0.35,111320.0,111310.0,0.05410761]
[1757242838525,0.35,111320.0,111310.0,0.05510761]
[1757242839134,0.35,111320.0,111310.0,0.05810761]
[1757242839931,0.35,111320.0,111310.0,0.05710761]
[1757242840135,0.35,111320.0,111310.0,0.05910761]
[1757242840432,0.35918319,111320.0,111310.0,0.05910761]
[1757242843736,0.63048402,111320.0,111310.0,0.1178981]
[1757242844329,0.63048402,111320.0,111310.0,0.005]
[1757242844730,0.63048402,111320.0,111310.0,0.08567015]
[1757242854547,0.63048402,111320.0,111310.0,0.005]
[1757242855943,0.63048402,111320.0,111310.0,0.1178981]
[1757242858947,1.44344402,111320.0,111310.0,0.1178981]
[1757242860752,0.63048402,111320.0,111310.0,0.1178981]
[1757242861150,1.44344402,111320.0,111310.0,0.1178981]
[1757242863149,1.44344402,111320.0,111310.0,0.1309281]
[1757242863957,0.63048402,111320.0,111310.0,0.1309281]
[1757242864249,1.44344402,111320.0,111310.0,0.1309281]
[1757242864749,1.44344402,111320.0,111310.0,0.1521881]
[1757242865452,0.63048402,111320.0,111310.0,0.1521881]
[1757242865748,1.44344402,111320.0,111310.0,0.1521881]
[1757242869858,1.44340402,111320.0,111310.0,0.1521881]
[1757242871958,0.63048402,111320.0,111310.0,0.1521881]
[1757242872159,1.44340402,111320.0,111310.0,0.1521881]
[1757242872547,1.44340402,111320.0,111310.0,0.11999816]
[1757242873359,1.44340402,111320.0,111310.0,0.03929]
[1757242874958,0.63048402,111320.0,111310.0,0.03929]
[1757242875156,1.44340402,111320.0,111310.0,0.03929]
[1757242875759,1.44340402,111320.0,111310.0,0.12002661]
[1757242876758,1.44340402,111320.0,111310.0,0.09876661]
[1757242877260,1.44340402,111320.0,111310.0,0.08573661]
[1757242877855,1.44340402,111320.0,111310.0,0.005]
[1757242878054,1.44340402,111320.0,111310.0,0.08573661]
[1757242878858,1.44340402,111320.0,111310.0,0.08273661]
[1757242879460,1.44340402,111320.0,111310.0,0.08073661]
[1757242879655,0.63048402,111320.0,111310.0,0.08173661]
[1757242879854,1.19360402,111320.0,111310.0,0.001]
[1757242880053,1.19360402,111320.0,111310.0,0.01385]
[1757242880249,1.19360402,111320.0,111310.0,0.01285]
[1757242880454,1.19360402,111320.0,111310.0,0.01385]
[1757242881263,1.19360402,111320.0,111310.0,0.001]
[1757242890273,1.19360402,111320.0,111310.0,0.1138981]
[1757242894582,1.19360402,111320.0,111310.0,0.001]
[1757242896271,1.19360402,111320.0,111310.0,0.08171913]
[1757242900287,1.19360402,111320.0,111310.0,0.001]
[1757242900585,1.19360402,111320.0,111310.0,0.08172761]
[1757242901281,1.19360402,111320.0,111310.0,0.001]
[1757242901683,1.19360402,111320.0,111310.0,0.08173105]
[1757242901886,1.19360402,111320.0,111310.0,0.001]
[1757242903486,1.19360402,111320.0,111310.0,0.1138981]
[1757242904280,1.44360402,111320.0,111310.0,0.08075989]
[1757242904487,1.44360402,111320.0,111300.0,0.04719724]
[1757242904686,1.19380402,111320.0,111300.0,0.00013484]
[1757242906187,1.19380402,111320.0,111300.0,0.00113484]
[1757242906989,0.38068402,111320.0,111300.0,0.00113484]
[1757242907182,0.38068402,111320.0,111310.0,0.03425]
[1757242907382,1.19380402,111320.0,111310.0,0.03425]
[1757242907583,1.19380402,111320.0,111310.0,0.01324]
[1757242909089,1.19380402,111320.0,111310.0,0.01424]
[1757242910091,0.38048402,111320.0,111310.0,0.01424]
[1757242910297,1.19396402,111320.0,111310.0,0.01424]
[1757242910486,1.19396402,111320.0,111310.0,0.03525]
[1757242912387,1.19396402,111320.0,111310.0,0.14823633]
[1757242912788,1.19396402,111320.0,111310.0,0.03525]
[1757242913498,1.19396402,111320.0,111310.0,0.14823633]
[1757242917998,1.19396402,111320.0,111310.0,0.03525]
[1757242930103,1.19396402,111320.0,111310.0,0.01424]
[1757242932108,1.19396402,111320.0,111310.0,0.12722633]
[1757242937214,1.19396402,111320.0,111310.0,0.11398633]
[1757242938911,1.19396402,111320.0,111310.0,0.001]
[1757242944519,0.38048402,111320.0,111310.0,0.001]
[1757242944723,1.19540402,111320.0,111310.0,0.001]
[1757242951221,0.38048402,111320.0,111310.0,0.001]
[1757242951422,1.19548402,111320.0,111310.0,0.001]
[1757242952122,1.19548402,111320.0,111310.0,0.01423]
[1757242952525,0.38048402,111320.0,111310.0,0.01423]
[1757242952715,1.19544402,111320.0,111310.0,0.01423]
[1757242953014,1.19544402,111320.0,111310.0,0.001]
[1757242954422,1.19540402,111320.0,111310.0,0.001]
[1757242955317,1.19540402,111320.0,111310.0,0.11398633]
[1757242956124,0.38048402,111320.0,111310.0,0.11398633]
[1757242956326,1.19540402,111320.0,111310.0,0.14983633]
[1757242956624,1.19540402,111320.0,111310.0,0.03685]
[1757242957022,0.38048402,111320.0,111310.0,0.03685]
[1757242957220,1.19528402,111320.0,111310.0,0.03685]
[1757242961929,0.38048402,111320.0,111310.0,0.03685]
[1757242962129,1.19504402,111320.0,111310.0,0.03685]
[1757242963926,1.19489481,111320.0,111310.0,0.03685]
[1757242964329,0.38033481,111320.0,111310.0,0.03685]
[1757242964533,1.19481481,111320.0,111310.0,0.03685]
[1757242966330,1.19477481,111320.0,111310.0,0.03685]
[1757242966625,0.38033481,111320.0,111310.0,0.03685]
[1757242966832,1.19473481,111320.0,111310.0,0.03685]
[1757242967027,0.38033481,111320.0,111310.0,0.03685]
[1757242967229,1.19469481,111320.0,111310.0,0.03685]
[1757242967926,0.38033481,111320.0,111310.0,0.03685]
[1757242968126,1.19465481,111320.0,111310.0,0.14983633]
[1757242968329,0.38033481,111320.0,111310.0,0.14983633]
[1757242968529,1.19465481,111320.0,111310.0,0.14983633]
[1757242968832,1.19461481,111320.0,111310.0,0.14983633]
[1757242969832,0.38033481,111320.0,111310.0,0.14983633]
[1757242970033,1.19457481,111320.0,111310.0,0.14983633]
[1757242971237,0.38033481,111320.0,111310.0,0.14983633]
[1757242971428,1.19453481,111320.0,111310.0,0.14983633]
[1757242971934,0.38033481,111320.0,111310.0,0.14983633]
[1757242972130,1.19449481,111320.0,111310.0,0.14983633]
[1757242972635,0.38033481,111320.0,111310.0,0.14983633]
[1757242972836,1.19449481,111320.0,111310.0,0.14983633]
[1757242973237,0.38033481,111320.0,111310.0,0.14983633]
[1757242973430,1.19445481,111320.0,111310.0,0.14983633]
[1757242973835,0.38033481,111320.0,111310.0,0.14983633]
[1757242974025,1.19445481,111320.0,111310.0,0.14983633]
[1757242974630,0.38033481,111320.0,111310.0,0.14983633]
[1757242974836,1.19637481,111320.0,111310.0,0.14983633]
[1757242975937,0.38033481,111320.0,111310.0,0.14983633]
[1757242976132,1.19629481,111320.0,111310.0,0.14983633]
[1757242976938,0.38033481,111320.0,111310.0,0.14983633]
[1757242977139,1.19621481,111320.0,111310.0,0.14983633]
[1757242977541,0.38033481,111320.0,111310.0,0.14983633]
[1757242977835,1.19621481,111320.0,111310.0,0.14983633]
[1757242978039,0.38033481,111320.0,111310.0,0.14983633]
[1757242978227,1.19621481,111320.0,111310.0,0.14983633]
[1757242982239,1.19621481,111320.0,111310.0,0.03685]
[1757242984544,1.19621481,111320.0,111310.0,0.14983633]
[1757242989556,0.38033481,111320.0,111310.0,0.14983633]
[1757242989755,1.19561481,111320.0,111310.0,0.14983633]
[1757242992253,1.19561481,111320.0,111310.0,0.03685]
[1757242999966,1.19561481,111320.0,111310.0,0.28685]
[1757243000359,0.38033481,111320.0,111310.0,0.28685]
[1757243000563,1.19509481,111320.0,111310.0,0.28685]
[1757243000866,1.19509481,111320.0,111310.0,0.39983633]
[1757243002360,1.19509481,111320.0,111310.0,0.28685]
[1757243007070,1.19509481,111320.0,111310.0,0.39985192]
[1757243008068,0.38033481,111320.0,111310.0,0.14985192]
[1757243008269,1.19493481,111320.0,111310.0,0.14985192]
[1757243009777,0.38033481,111320.0,111310.0,0.39985192]
[1757243010078,1.19493481,111320.0,111310.0,0.39985192]
[1757243011876,1.19493481,111320.0,111310.0,0.28685]
[1757243012970,1.19473481,111320.0,111310.0,0.28685]
[1757243019287,1.19473481,111320.0,111310.0,0.03685]
[1757243020986,0.84473481,111320.0,111310.0,0.03685]
[1757243023589,0.89473481,111320.0,111310.0,0.03685]
[1757243024885,0.89473481,111320.0,111310.0,0.14982835]
[1757243028779,0.89473481,111320.0,111310.0,0.03685]
[1757243030590,0.84473481,111320.0,111310.0,0.03685]
[1757243032494,0.03033481,111320.0,111310.0,0.03685]
[1757243038298,0.39033481,111320.0,111310.0,0.03685]
[1757243042699,0.36,111320.0,111310.0,0.14986623]
[1757243044702,0.36,111320.0,111310.0,0.03685]
[1757243047408,0.36923142,111320.0,111310.0,0.03685]
[1757243062423,0.36923142,111320.0,111310.0,0.14984056]
[1757243072529,0.36923142,111320.0,111310.0,0.03685]
[1757243078136,0.00923142,111320.0,111310.0,0.03685]
[1757243078328,0.88472756,111330.0,111310.0,0.03685]
[1757243078528,1.22472756,111330.0,111320.0,0.14729245]
[1757243078730,1.22452756,111330.0,111320.0,0.14729245]
[1757243079735,1.22552756,111330.0,111320.0,0.14729245]
[1757243081337,1.2341799,111330.0,111320.0,0.14729245]
[1757243084934,1.2341799,111330.0,111320.0,0.03426]
[1757243086342,0.4208599,111330.0,111320.0,0.03426]
[1757243086540,1.2341799,111330.0,111320.0,0.03426]
[1757243089534,1.2341799,111330.0,111320.0,0.19614958]
[1757243089738,1.2341799,111330.0,111320.0,0.30919268]
[1757243090437,1.2341799,111330.0,111320.0,0.03426]
[1757243103553,1.2341799,111330.0,111320.0,0.01278]
[1757243104051,1.2341799,111330.0,111320.0,0.03385]
[1757243107957,0.4208599,111330.0,111320.0,0.03385]
[1757243108155,1.2343399,111330.0,111320.0,0.03385]
[1757243111357,1.2343399,111330.0,111320.0,0.19573958]
[1757243112863,1.2341799,111330.0,111320.0,0.03385]
[1757243113062,0.341,111330.0,111320.0,0.28385]
[1757243113365,0.001,111330.0,111320.0,0.62385]
[1757243113661,0.001,111330.0,111320.0,0.78573958]
[1757243113857,0.00039,111340.0,111330.0,0.013]
[1757243114056,0.32019,111340.0,111330.0,0.03407]
[1757243115257,0.32219,111340.0,111330.0,0.03407]
[1757243115456,0.32319,111340.0,111330.0,0.03407]
[1757243117063,0.32319,111340.0,111330.0,0.41407]
[1757243117262,0.32319,111340.0,111330.0,0.03407]
[1757243118766,0.00319,111340.0,111330.0,0.28407]
[1757243119265,0.00319,111340.0,111330.0,0.03407]
[1757243119667,0.00219,111340.0,111330.0,0.03407]
[1757243119869,0.00219,111340.0,111330.0,0.03507]
[1757243120268,0.00019,111340.0,111330.0,0.03507]
[1757243120467,0.0002,111350.0,111330.0,0.03507]
[1757243120661,0.3402,111350.0,111340.0,0.14736592]
[1757243120862,0.34,111350.0,111340.0,0.14736592]
[1757243121369,0.34900796,111350.0,111340.0,0.14736592]
[1757243122164,0.35000796,111350.0,111340.0,0.14736592]
[1757243125772,0.341,111350.0,111340.0,0.39736592]
[1757243127373,0.591,111350.0,111340.0,0.12587592]
[1757243127574,0.591,111350.0,111340.0,0.11269592]
[1757243127775,1.42523875,111350.0,111320.0,0.30580251]
[1757243127973,1.42543875,111350.0,111320.0,0.30570251]
[1757243128272,1.42543875,111350.0,111330.0,0.11269592]
[1757243128673,1.17543875,111350.0,111320.0,0.11269592]
[1757243129065,1.42543875,111350.0,111310.0,0.16542567]
[1757243129265,0.0002,111340.0,111310.0,0.11269592]
[1757243129466,0.6302,111340.0,111300.0,0.0001]
[1757243129775,1.08461618,111330.0,111290.0,0.10591]
[1757243129963,0.0002,111320.0,111290.0,0.21850592]
[1757243130168,0.81368,111310.0,111300.0,0.01318]
[1757243130369,1.18368,111310.0,111300.0,0.03467]
[1757243130767,0.37,111310.0,111300.0,0.03467]
[1757243130966,0.0002,111320.0,111310.0,0.01318]
[1757243131271,0.56,111320.0,111290.0,0.23178592]
[1757243131475,0.61552,111310.0,111290.0,0.21850592]
[1757243131676,0.81572,111310.0,111300.0,0.002]
[1757243131872,0.81552,111310.0,111300.0,0.002]
[1757243132374,0.81552,111310.0,111290.0,0.10581]
[1757243132576,1.06572,111310.0,111290.0,0.10581]
[1757243132776,1.06572,111310.0,111290.0,0.10781]
[1757243132974,0.25,111300.0,111290.0,0.10781]
[1757243133170,0.58919502,111300.0,111290.0,0.10781]
[1757243134173,0.33919502,111300.0,111290.0,0.10781]
[1757243134374,1.15471502,111300.0,111290.0,0.10581]
[1757243134675,1.15471502,111300.0,111290.0,0.10981]
[1757243135277,1.22488982,111300.0,111290.0,0.11281]
[1757243135870,0.40936982,111300.0,111290.0,0.11281]
[1757243136077,0.33,111300.0,111290.0,0.39748]
[1757243136277,0.15,111300.0,111290.0,0.39748]
[1757243139276,0.15,111300.0,111290.0,0.14748]
[1757243144180,0.15,111300.0,111290.0,0.12599]
[1757243144776,0.15,111300.0,111290.0,0.14748]
[1757243157482,0.15,111300.0,111290.0,0.26017592]
[1757243160887,0.15,111300.0,111290.0,0.14748]
[1757243162193,0.96556,111300.0,111290.0,0.39748]
[1757243166600,0.15,111300.0,111290.0,0.39748]
[1757243167094,0.85308,111300.0,111290.0,0.39748]
[1757243167496,0.15,111300.0,111290.0,0.39748]
[1757243167696,0.96568,111300.0,111290.0,0.39748]
[1757243178607,0.96568,111300.0,111290.0,0.55936958]
[1757243189220,0.96464,111300.0,111290.0,0.55936958]
[1757243196429,0.96464,111300.0,111290.0,0.39748]
[1757243197625,0.96424,111300.0,111290.0,0.39748]
[1757243198925,0.15,111300.0,111290.0,0.39748]
[1757243199135,0.9642,111300.0,111290.0,0.39748]
[1757243199426,0.9642,111300.0,111290.0,0.14748]
[1757243199729,1.0365736,111300.0,111290.0,0.14748]
[1757243203430,0.9642,111300.0,111290.0,0.14748]
[1757243206031,0.9642,111300.0,111290.0,0.30936958]
[1757243207325,0.96388,111300.0,111290.0,0.30936958]
[1757243208629,0.96388,111300.0,111290.0,0.28787958]
[1757243208829,0.96388,111300.0,111290.0,0.30905958]
[1757243210434,1.21388,111300.0,111290.0,0.28787958]
[1757243210628,1.42388,111300.0,111290.0,0.28787958]
[1757243211533,1.42388,111300.0,111290.0,0.27469958]
[1757243212131,1.42388,111300.0,111290.0,0.3877444]
[1757243212530,1.42388,111300.0,111290.0,0.22585482]
[1757243213728,1.42388,111300.0,111290.0,0.22285482]
[1757243213929,1.49689324,111300.0,111290.0,0.22485482]
[1757243214231,1.49689324,111300.0,111290.0,0.22085482]
[1757243214434,1.49689324,111300.0,111290.0,0.22285482]
[1757243215035,1.49689324,111300.0,111290.0,0.10981]
[1757243219140,1.49689324,111300.0,111290.0,0.22285482]
[1757243219535,1.49689324,111300.0,111290.0,0.23586493]
[1757243219735,1.49689324,111300.0,111290.0,0.12282011]
[1757243222136,1.49689324,111300.0,111290.0,0.23572605]
[1757243223245,1.24689324,111300.0,111290.0,0.23572605]
[1757243223540,1.49693324,111300.0,111290.0,0.25690605]
[1757243223734,1.49693324,111300.0,111290.0,0.15755011]
[1757243223939,1.49693324,111300.0,111290.0,0.13637011]
[1757243224544,1.24693324,111300.0,111290.0,0.27045605]
[1757243227645,1.24693324,111300.0,111290.0,0.23572605]
[1757243228649,1.24693324,111300.0,111290.0,0.22271594]
[1757243230752,0.43301324,111300.0,111290.0,0.22271594]
[1757243231050,1.24713324,111300.0,111290.0,0.22271594]
[1757243243562,1.49713324,111300.0,111290.0,0.22271594]
[1757243243961,1.49713324,111300.0,111290.0,0.10981]
[1757243246568,1.49713324,111300.0,111290.0,0.10781]
[1757243247272,1.49713324,111300.0,111290.0,0.10581]
[1757243247471,1.49713324,111300.0,111290.0,0.10681]
[1757243253878,1.51779275,111300.0,111290.0,0.10681]
[1757243255377,1.51771275,111300.0,111290.0,0.10681]
[1757243259379,1.26771275,111300.0,111290.0,0.10681]
[1757243266985,0.45367275,111300.0,111290.0,0.10681]
[1757243267286,1.26771275,111300.0,111290.0,0.10681]
[1757243268384,3.08031275,111300.0,111290.0,0.10681]
[1757243276288,2.26627275,111300.0,111290.0,0.10681]
[1757243276594,3.08027275,111300.0,111290.0,0.10681]
[1757243280695,2.26627275,111300.0,111290.0,0.10681]
[1757243280897,3.08027275,111300.0,111290.0,0.10681]
[1757243285004,2.26627275,111300.0,111290.0,0.10681]
[1757243285205,3.08023275,111300.0,111290.0,0.10681]
[1757243286104,3.08023275,111300.0,111290.0,0.39386]
[1757243286610,3.08023275,111300.0,111290.0,0.37062]
[1757243287907,3.08023275,111300.0,111290.0,0.35681]
[1757243288199,3.08023275,111300.0,111290.0,0.10681]
[1757243296618,3.08023275,111300.0,111290.0,0.1875367]
[1757243302420,2.26627275,111300.0,111290.0,0.1875367]
[1757243302623,2.26627275,111300.0,111290.0,0.4740867]
[1757243302624,3.08019275,111300.0,111290.0,0.4740867]
[1757243303118,3.08019275,111300.0,111290.0,0.1875367]
[1757243309127,2.26627275,111300.0,111290.0,0.4740867]
[1757243309425,3.08019275,111300.0,111290.0,0.4740867]
[1757243316929,3.08015275,111300.0,111290.0,0.4740867]
[1757243317128,2.26627275,111300.0,111290.0,0.4740867]
[1757243317327,3.08015275,111300.0,111290.0,0.39336]
[1757243317527,3.08015275,111300.0,111290.0,0.50626594]
[1757243318728,3.08015275,111300.0,111290.0,0.39336]
[1757243319330,3.08015275,111300.0,111290.0,0.14336]
[1757243320430,3.08015275,111300.0,111290.0,0.22397934]
[1757243328238,3.08015275,111300.0,111290.0,0.14336]
[1757243330635,1.26755275,111300.0,111290.0,0.14336]
[1757243333943,1.26755275,111300.0,111290.0,0.25626594]
[1757243340454,0.45367275,111300.0,111290.0,0.50626594]
[1757243340655,1.26743275,111300.0,111290.0,0.50626594]
[1757243340853,1.26743275,111300.0,111290.0,0.39336]
[1757243342655,1.26743275,111300.0,111290.0,0.50623018]
[1757243342954,1.26743275,111300.0,111290.0,0.39336]
[1757243343153,0.45367275,111300.0,111290.0,0.39336]
[1757243343354,1.26739275,111300.0,111290.0,0.39336]
[1757243345156,0.45367275,111300.0,111290.0,0.39336]
[1757243345655,1.26739275,111300.0,111290.0,0.39336]
[1757243345856,0.45367275,111300.0,111290.0,0.39336]
[1757243346052,1.26739275,111300.0,111290.0,0.39336]
[1757243350064,0.90739275,111300.0,111290.0,0.39336]
[1757243354775,0.09367275,111300.0,111290.0,0.39336]
[1757243354974,0.90735275,111300.0,111290.0,0.39336]
[1757243356073,0.09367275,111300.0,111290.0,0.14336]
[1757243356272,0.90735275,111300.0,111290.0,0.14336]
[1757243356573,0.90735275,111300.0,111290.0,0.2562342]
[1757243359076,0.88669324,111300.0,111290.0,0.2562342]
[1757243362983,0.88669324,111300.0,111290.0,0.14336]
[1757243365381,0.88669324,111300.0,111290.0,0.25622554]
[1757243365874,1.08669324,111300.0,111290.0,0.25622554]
[1757243366278,1.08669324,111300.0,111290.0,0.14336]
[1757243369586,1.33669324,111300.0,111290.0,0.14336]
[1757243369786,1.33669324,111300.0,111290.0,0.25626071]
[1757243370087,1.35762793,111300.0,111290.0,0.21971071]
[1757243374292,1.35762793,111300.0,111290.0,0.10681]
[1757243374492,1.35762793,111300.0,111290.0,0.21969612]
[1757243375291,1.35762793,111300.0,111290.0,0.23300612]
[1757243379298,1.10762793,111300.0,111290.0,0.23300612]
[1757243380597,1.10762793,111300.0,111290.0,0.21969612]
[1757243384997,1.10762793,111300.0,111290.0,0.25468612]
[1757243391600,1.10762793,111300.0,111290.0,0.23300612]
[1757243398116,0.29394793,111300.0,111290.0,0.25484612]
[1757243398412,1.10746793,111300.0,111290.0,0.25484612]
[1757243399422,1.10746793,111300.0,111290.0,0.14196]
[1757243407632,0.29394793,111300.0,111290.0,0.14196]
[1757243407834,1.10738793,111300.0,111290.0,0.14196]
[1757243408224,1.10738793,111300.0,111290.0,0.25489596]
[1757243418236,1.10738793,111300.0,111290.0,0.14196]
[1757243424042,1.10738793,111300.0,111290.0,0.14177]
[1757243426838,1.10738793,111300.0,111290.0,0.14158]
[1757243428848,1.10738793,111300.0,111290.0,0.21938037]
[1757243429439,1.10738793,111300.0,111290.0,0.21919037]
[1757243432146,1.10738793,111300.0,111290.0,0.21900037]
[1757243434847,1.10738793,111300.0,111290.0,0.21881037]
[1757243436047,1.10738793,111300.0,111290.0,0.10586]
[1757243437748,1.10738793,111300.0,111290.0,0.10567]
[1757243440249,1.10738793,111300.0,111290.0,0.10548]
[1757243442952,1.10738793,111300.0,111290.0,0.10529]
[1757243444453,1.10738793,111300.0,111290.0,0.21824037]
[1757243445353,1.10738793,111300.0,111290.0,0.10529]
[1757243445655,1.10738793,111300.0,111290.0,0.1051]
[1757243445856,1.10738793,111300.0,111290.0,0.21805037]
[1757243446649,1.10738793,111300.0,111290.0,0.1051]
[1757243447256,0.29394793,111300.0,111290.0,0.1051]
[1757243447556,1.10714793,111300.0,111290.0,0.1051]
[1757243448458,1.10714793,111300.0,111290.0,0.10491]
[1757243451159,1.10714793,111300.0,111290.0,0.10472]
[1757243454066,1.10714793,111300.0,111290.0,0.10453]
[1757243454967,1.10714793,111300.0,111290.0,0.14144]
[1757243456467,1.10714793,111300.0,111290.0,0.14125]
[1757243459269,1.10714793,111300.0,111290.0,0.14106]
[1757243461069,1.10714793,111300.0,111290.0,0.25401037]
[1757243461872,1.10714793,111300.0,111290.0,0.25382037]
[1757243462977,1.10714793,111300.0,111290.0,0.14087]
[1757243463778,1.10714793,111300.0,111290.0,0.25382037]
[1757243464679,1.10714793,111300.0,111290.0,0.25363037]
[1757243467281,1.10714793,111300.0,111290.0,0.25344037]
[1757243467881,0.29394793,111300.0,111290.0,0.25344037]
[1757243468079,1.10702793,111300.0,111290.0,0.25344037]
[1757243469982,1.10702793,111300.0,111290.0,0.25325037]
[1757243472689,1.10702793,111300.0,111290.0,0.25306037]
[1757243474479,0.29394793,111300.0,111290.0,0.25306037]
[1757243474782,1.10702793,111300.0,111290.0,0.25306037]
[1757243475384,1.10702793,111300.0,111290.0,0.25287037]
[1757243481387,0.29394793,111300.0,111290.0,0.25287037]
[1757243481591,1.10694793,111300.0,111290.0,0.25287037]
[1757243483993,1.10694793,111300.0,111290.0,0.13992]
[1757243485694,1.10690793,111300.0,111290.0,0.38992]
[1757243486382,0.29394793,111300.0,111290.0,0.38992]
[1757243486587,1.10690793,111300.0,111290.0,0.38992]
[1757243488592,1.10690793,111300.0,111290.0,0.11698]
[1757243490188,1.10690793,111300.0,111290.0,0.01497]
[1757243490695,1.10690793,111300.0,111290.0,0.001]
[1757243491494,1.10724912,111300.0,111290.0,0.001]
[1757243494796,1.10724912,111300.0,111290.0,0.01419]
[1757243495897,1.10724912,111300.0,111290.0,0.03544]
[1757243497597,1.10724912,111300.0,111290.0,0.14833916]
[1757243498396,1.10724912,111300.0,111290.0,0.03544]
[1757243499097,1.10724912,111300.0,111290.0,0.14833916]
[1757243500299,0.29428912,111300.0,111290.0,0.14833916]
[1757243500499,1.10716912,111300.0,111290.0,0.39833916]
[1757243506300,0.29428912,111300.0,111290.0,0.39833916]
[1757243506501,1.10716912,111300.0,111290.0,0.39833916]
[1757243508304,1.10716912,111300.0,111290.0,0.28544]
[1757243510900,0.29428912,111300.0,111290.0,0.28544]
[1757243511102,1.10712912,111300.0,111290.0,0.28544]
[1757243516310,1.08585324,111300.0,111290.0,0.28544]
[1757243517710,1.10640541,111300.0,111290.0,0.28544]
[1757243524816,1.10640541,111300.0,111290.0,0.39829304]
[1757243530216,1.10640541,111300.0,111290.0,0.28544]
[1757243544229,1.10640541,111300.0,111290.0,0.39829304]
[1757243544936,1.10640541,111300.0,111290.0,0.14829304]
[1757243555536,0.90640541,111300.0,111290.0,0.14829304]
[1757243555842,0.90640541,111300.0,111290.0,0.03544]
[1757243559243,0.90640541,111300.0,111290.0,0.14832451]
[1757243560242,0.09356541,111300.0,111290.0,0.14832451]
[1757243560542,0.45092541,111300.0,111290.0,0.03544]
[1757243562142,0.09356541,111300.0,111290.0,0.03544]
[1757243565752,0.02055217,111300.0,111290.0,0.28544]
[1757243566050,0.0002,111310.0,111300.0,0.03665]
[1757243566253,0.30395673,111320.0,111310.0,0.03497]
[1757243566453,0.65375673,111320.0,111310.0,0.14771058]
[1757243567454,0.65904673,111320.0,111310.0,0.14771058]
[1757243568554,0.66104673,111320.0,111310.0,0.14771058]
[1757243569254,0.66304673,111320.0,111310.0,0.14771058]
[1757243595071,0.66304673,111320.0,111310.0,0.03497]
[1757243595472,0.66304673,111320.0,111310.0,0.14776448]
[1757243595670,0.65775673,111320.0,111310.0,0.14776448]
[1757243595870,0.38419673,111320.0,111310.0,0.03497]
[1757243596271,0.38948673,111320.0,111310.0,0.03497]
[1757243599781,0.38948673,111320.0,111310.0,0.14770506]
[1757243600980,0.11948673,111320.0,111310.0,0.14770506]
[1757243603083,0.03948673,111320.0,111310.0,0.14770506]
[1757243605284,0.03419673,111320.0,111310.0,0.14770506]
[1757243607979,0.03419673,111320.0,111310.0,0.03497]
[1757243608482,0.03419673,111320.0,111310.0,0.19685958]
[1757243608788,0.03948673,111320.0,111310.0,0.19685958]